Cogmind - Beta 16 @@@ ROGUE MODE // 2025.10.23 @ 06:36:47 Player: Naughtyusername Result: Destroyed by G-47 Trooper with Particle Gun Performance ------------- Evolutions (2) 1000 Regions Visited (6) 1200 Robots Destroyed (94) 470 Value Destroyed (2474) 2474 Prototype IDs (29) 580 Alien Tech Used (0) 0 Bonus (324) 324 TOTAL SCORE: 6048 Bonus ------- High Alert Combat Kills 124 Entered Garrisons 200 Cogmind --------- Core Integrity 0/550 Matter 8/300 Energy 98/100 System Corruption 17% Temperature Cool (9) Movement Core (50) Location -8/Garrison Parts ------- > --- POWER (1) -------- (None) > --- PROPULSION (3) --- (None) > --- UTILITY (3) ------ (None) > --- WEAPON (4) ------- (None) > --- INVENTORY (5) ---- Armored Huge Wheel Armored Huge Wheel Peak State ------------ > --- POWER ------------ Improved Ion Engine > --- PROPULSION ------- Carbon-fiber Leg Armored Huge Wheel > --- UTILITY ---------- Cooling System Huge Storage Unit Improved Light Armor Plating > --- WEAPON ----------- Flak Gun Flak Gun Flak Gun Flak Gun > --- INVENTORY -------- Light Deuterium Engine Carbon-fiber Leg Carbon-fiber Leg Carbon-fiber Leg Armored Huge Wheel Armored Huge Wheel Armored Huge Wheel Cooling System High-capacity Storage Unit Improved Signal Interpreter Improved Signal Interpreter Seismic Detector Modified TNC Advanced Targeting Computer Weapon Shielding Improved Light Armor Plating Improved Light Armor Plating High-powered Tractor Beam Autogun Autogun Mini Grenade Launcher [Rating: 42] Favorites ----------- Power Ion Engine Engine Ion Engine Propulsion Improved Aluminum Leg Treads Light Treads Leg Improved Aluminum Leg Wheel Armored Huge Wheel Hover Unit Aerolev Unit Utility Large Storage Unit Device Cooling System Storage Large Storage Unit Processor Advanced Visual Processing Unit Protection Light Armor Plating Weapon Heavy Assault Rifle Energy Gun Small Laser Ballistic Gun Heavy Assault Rifle Ballistic Cannon Assault Cannon Launcher Grenade Launcher Build | -11 -10 -10 -10 -9 -8 -8 ------- Run | Yrd Mat Min Exi Min Mat Gar Slots Evolved 4 | . . . . . 4 . Power . | . . . . . . . Propulsion 1 | . . . . . 1 . Utility 1 | . . . . . 1 . Weapon 2 | . . . . . 2 . Parts Attached 59 | 8 11 1 . 3 33 3 Power 4 | 1 . . . 1 1 1 Engine 4 | 1 . . . 1 1 1 Core . | . . . . . . . Reactor . | . . . . . . . Propulsion 15 | 2 3 . . 1 9 . Treads 2 | 2 . . . . . . Leg 11 | . 3 . . 1 7 . Wheel 1 | . . . . . 1 . Hover 1 | . . . . . 1 . Flight . | . . . . . . . Utility 15 | 2 4 . . 1 8 . Device 5 | 1 1 . . . 3 . Storage 5 | 1 1 . . . 3 . Processor 1 | . . . . . 1 . Hackware . | . . . . . . . Protection 4 | . 2 . . 1 1 . Artifact . | . . . . . . . Weapon 25 | 3 4 1 . . 15 2 Energy Gun 5 | 3 . . . . 2 . Energy Cannon . | . . . . . . . Ballistic Gun 16 | . 3 . . . 11 2 Ballistic Cannon 1 | . . . . . 1 . Launcher 3 | . 1 1 . . 1 . Special Weapon . | . . . . . . . Impact Weapon . | . . . . . . . Slashing Weapon . | . . . . . . . Piercing Weapon . | . . . . . . . Special Melee Weapon . | . . . . . . . Unidentified Prototypes 2 | . . . . . 2 . Parts Lost 20 | . 4 . . 3 2 11 Power 2 | . . . . 1 . 1 Propulsion 5 | . 1 . . 1 1 2 Utility 5 | . 1 . . 1 1 2 Weapon 8 | . 2 . . . . 6 Highest Loss Streak 11 | . 3 . . 3 1 11 To Critical Strikes . | . . . . . . . Average Backups 13 | 1 11 15 15 14 14 17 Power 1 | . 1 1 1 . 1 . Propulsion 2 | . 1 3 3 2 2 5 Utility 6 | . 4 6 6 5 8 9 Weapon 3 | . 3 5 5 5 2 2 Tool/Special . | . . . . . . . Unused Backups 25 | . 5 . 1 . 9 10 Power 1 | . 1 . . . . . Propulsion 6 | . 1 . . . 1 4 Utility 14 | . 1 . 1 . 6 6 Weapon 4 | . 2 . . . 2 . Tool/Special . | . . . . . . . Average Slot Usage (%) 96 | . 92 100 100 99 96 64 Engine 11 | . 14 14 14 13 9 5 Treads 1 | . 7 . . . . . Leg 22 | . 17 28 28 28 21 6 Wheel 1 | . . . . . 2 6 Device 3 | . . . . . 8 6 Storage 12 | . 14 14 14 14 9 8 Processor 1 | . . . . . 4 . Protection 9 | . 8 14 14 14 4 5 Energy Gun 2 | . 8 . . . . . Ballistic Gun 28 | . 18 27 28 28 35 24 Peak Build Rating 42 | 7 12 12 12 13 42 42 Average Rating 19 | 5 9 11 12 12 32 27 On Entrance 13 | . 7 12 12 12 13 41 Avg Prop Armor Cover (%) 4 | . 6 . . . 4 4 Naked Turns 13 | . . . . . . 13 Heaviest Build 108 | 15 34 34 34 34 108 108 Greatest Support 45 | 40 40 23 23 23 45 28 Greatest Overweight (x) 4 | . 1 1 1 1 4 3 Average Overweight (x) . | . . 1 1 1 . 1 Largest Inventory Capacity 25 | 8 15 15 15 15 25 25 Average Capacity 14 | 7 12 15 15 15 15 22 Most Carried 24 | 2 15 15 15 15 24 23 Average Carried 14 | 1 11 15 15 14 15 19 Final Capacity 25 | 8 15 15 15 15 25 5 Final Carried 23 | 2 15 15 15 15 23 4 Class Distribution -------------------- 47% | Mutant 19% | Tank 17% | Skirmisher 15% | Commander-Mutant Dominant Class ---------------- Mutant | -10/Materials Mutant | -10/Mines Commander-Mutant | -10/Exiles Commander-Mutant | -9/Mines Tank | -8/Materials Mutant | -8/Garrison Resources | -11 -10 -10 -10 -9 -8 -8 ----------- Run | Yrd Mat Min Exi Min Mat Gar Matter Collected 2534 | 280 281 94 . 83 1710 86 Remotely 33 | . . . . . 33 . Salvage Created 2979 | 165 704 89 . 164 1656 201 Parts 204 | 16 42 9 . 6 118 13 Haulers Intercepted 7 | . 2 . . . 5 . Recyclers Shooed 2 | . . . . 1 1 . Parts Field Recycled . | . . . . . . . Retrieved Matter . | . . . . . . . Parts Self-Destructed . | . . . . . . . Prevented . | . . . . . . . Parts Restored . | . . . . . . . Kills | -11 -10 -10 -10 -9 -8 -8 ------- Run | Yrd Mat Min Exi Min Mat Gar Combat Hostiles Destroyed 61 | . 14 5 . 2 35 5 Guns 47 | . 8 2 . 2 30 5 AOE 14 | . 6 3 . . 5 . Classes Destroyed 15 | 2 5 . . 1 5 2 Worker 5 | . 2 . . . 3 . Builder 3 | . . . . . 3 . Tunneler 8 | 5 3 . . . . . Hauler 7 | . 2 . . . 5 . Recycler 5 | 1 2 . . 1 1 . Operator 3 | . 1 . . . 2 . Watcher 2 | . . . . . 2 . Swarmer 16 | . 6 3 . . 7 . Grunt 30 | . 8 2 . . 18 2 Brawler 1 | . . . . . . 1 Duelist 1 | . . . . . 1 . Sentry 7 | . . . . . 7 . Demolisher 2 | . . . . 2 . . Hunter 2 | . . . . . 2 . Programmer 2 | . . . . . . 2 Best Kill Streak 7 | 6 7 3 . 2 5 3 Combat Bots Only 5 | . 5 3 . 2 4 3 Max Kills in Single Turn 3 | 2 3 1 . 1 3 1 Gunslinging . | . . . . . . . Exploded 3 | . 3 1 . . 2 . Melee . | . . . . . . . Uniques/NPCs Destroyed . | . . . . . . . Combat | -11 -10 -10 -10 -9 -8 -8 -------- Run | Yrd Mat Min Exi Min Mat Gar Hostile Shots Fired 292 | . 67 13 . 11 84 117 Missed 72 | . 20 5 . 3 21 23 Hits 220 | . 47 8 . 8 63 94 Melee 4 | . . . . . 3 1 Projectile 216 | . 47 8 . 8 60 93 AOE 11 | . . . . 11 . . Critical Strikes 5 | . 1 . . . 2 2 Damage Taken 3843 | . 676 89 . 434 1095 1549 Core 772 | . 90 29 . 94 142 417 Absorbed by Shields . | . . . . . . . Redirected to Shielding 51 | . . . . 26 25 . Regen/Repaired (Parts) 39 | . . . . . 39 . Core Remaining (%) 57 | 100 . . . 14 . . Volleys Fired 166 | 8 46 10 . 8 78 16 Largest 4 | 2 2 2 . 2 4 4 Hottest 121 | 80 80 46 . 46 121 112 Shots Fired 470 | 16 88 16 . 16 300 34 Gun 453 | 16 84 12 . 16 294 31 Cannon 2 | . . . . . 2 . Launcher 15 | . 4 4 . . 4 3 Special . | . . . . . . . Kinetic 400 | . 45 12 . 16 296 31 Thermal 19 | . 19 . . . . . Explosive 15 | . 4 4 . . 4 3 Electromagnetic 36 | 16 20 . . . . . Robot Hit Streak 14 | 5 14 6 . 6 9 7 Robot Miss Streak 9 | 2 3 4 . 2 9 4 Penetration Max . | . . . . . . . Secondary Targets 2 | . . . . . . 2 Max Gunslinging Chain 1 | . . . . . . 1 Shots Hit Robots 309 | 11 62 6 . 9 193 28 Core Hits 250 | 7 29 6 . 4 179 25 Critical Kills 1 | . . . . . 1 . Critical Parts Destroyed . | . . . . . . . Critical Strikes 1 | . . . . . 1 . Destroy 1 | . . . . . 1 . Melee Attacks . | . . . . . . . Impact . | . . . . . . . Slashing . | . . . . . . . Piercing . | . . . . . . . Sneak Attacks . | . . . . . . . Combat Hostiles . | . . . . . . . Follow-up Attacks . | . . . . . . . Damage Inflicted 6290 | 221 1464 235 . 139 3448 783 Guns 4720 | 144 772 65 . 139 2946 654 Cannons 26 | . . . . . 26 . Explosions 1429 | 77 682 142 . . 402 126 Melee . | . . . . . . . Ramming 115 | . 10 28 . . 74 3 Kinetic 4262 | . 432 65 . 139 2972 654 Thermal 330 | 77 253 . . . . . Explosive 1274 | . 604 142 . . 402 126 Electromagnetic 309 | 144 165 . . . . . Impact . | . . . . . . . Slashing . | . . . . . . . Piercing . | . . . . . . . Highest Corruption 17 | . . . . . 5 17 Average Corruption 5 | . . . . . 5 10 Corruption Purged . | . . . . . . . Corruption Blocked . | . . . . . . . Effects 55 | . . . . . 49 6 Message Errors 7 | . . . . . 7 . Matter Fused 15 | . . . . . 14 1 Heat Flow Errors 7 | . . . . . 6 1 Energy Discharges 5 | . . . . . 5 . Parts Rejected 2 | . . . . . 1 1 Parts Fused 2 | . . . . . 2 . Data Loss (minor) 6 | . . . . . 6 . Data Loss (major) 2 | . . . . . 2 . Misfires 3 | . . . . . 2 1 Alerts 2 | . . . . . 2 . Weapon Failures 4 | . . . . . 2 2 Overload Shots . | . . . . . . . Overflow Damage 238 | . 115 12 . . 93 18 Projectiles . | . . . . . . . Explosions 238 | . 115 12 . . 93 18 Melee . | . . . . . . . Knockbacks . | . . . . . . . Impact . | . . . . . . . Kinetic . | . . . . . . . Secondary . | . . . . . . . Self-Inflicted Damage 323 | . 126 . . . 88 109 Shots 6 | . 2 . . . 1 3 Rammed 2 | . 1 . . . . 1 Targets Rammed 26 | . 2 5 . . 18 1 Kicked 24 | . 1 5 . . 18 . Crushed . | . . . . . . . Highest Temperature 267 | 36 205 22 . . 267 187 Average Temperature 48 | 18 58 13 . . 47 60 Received Heat Transfer 963 | . 216 36 . . 387 324 Siege Activations . | . . . . . . . Martial Activations . | . . . . . . . Shielding Activations . | . . . . . . . Robots Disrupted . | . . . . . . . Combat Hostiles . | . . . . . . . Robots Corrupted . | . . . . . . . Combat Hostiles . | . . . . . . . Parts Fried 1 | 1 . . . . . . Impact Corruptions . | . . . . . . . Robots Melted . | . . . . . . . Combat Hostiles . | . . . . . . . Parts Melted 1 | . 1 . . . . . Heat Transferred 600 | . 600 . . . . . Parts Sabotaged . | . . . . . . . Parts Stolen . | . . . . . . . Parts Stripped . | . . . . . . . Power Chain Reactions 4 | 2 2 . . . . . Alert | -11 -10 -10 -10 -9 -8 -8 ------- Run | Yrd Mat Min Exi Min Mat Gar Maximum Alert Level 2 | . . . . . 2 2 Low Security (%) 69 | 100 100 100 . 100 34 . Level 1 19 | . . . . . 46 1 Level 2 10 | . . . . . 19 98 Level 3 . | . . . . . . . Level 4 . | . . . . . . . Level 5 . | . . . . . . . High Security . | . . . . . . . Max Security . | . . . . . . . Peak Influence 634 | 15 158 115 . 50 634 450 Initial 410 | . . 38 . . 5 410 Average 136 | 4 61 15 . 9 250 415 Influence Increases 2133 | 30 563 147 . 55 1218 120 Destroy 0b10 Robot/C 1220 | . 280 100 . 40 700 100 Destroy 0b10 Robot/NC 165 | 30 50 . . 5 80 . Destroy Leader 278 | . 54 20 . 10 184 10 Successful Hack 92 | . 32 . . . 60 . Select Force Hacks 30 | . 30 . . . . . Disable Machine 75 | . 45 . . . 30 . Destroy Structure 168 | . 57 27 . . 74 10 Lose Combat Pursuer 105 | . 15 . . . 90 . Influence Decreases 1713 | 30 464 246 . 40 601 332 Entered New Map 293 | . . 61 . . 10 222 Time Decay 1250 | 30 424 185 . 40 571 . Lost Part 170 | . 40 . . . 20 110 Squads Dispatched 8 | . 2 . . . 6 . Investigation 3 | . 2 . . . 1 . Extermination . | . . . . . . . Reinforcement 2 | . . . . . 2 . Assault . | . . . . . . . Garrison 3 | . . . . . 3 . Intercept . | . . . . . . . Searches Triggered . | . . . . . . . Construction Impeded . | . . . . . . . Haulers Reinforced . | . . . . . . . Active Scanning Responses . | . . . . . . . Cargo Convoy Interrupts . | . . . . . . . Stealth | -11 -10 -10 -10 -9 -8 -8 --------- Run | Yrd Mat Min Exi Min Mat Gar Distress Signals 6 | . 1 . . . 5 . Communications Jammed . | . . . . . . . Distress Signals . | . . . . . . . Times Spotted 99 | . 23 4 . 2 57 13 Peak Tracking Total 8 | . 5 2 . 2 6 8 Tactical Retreats 6 | . 1 . . . 5 . Traps | -11 -10 -10 -10 -9 -8 -8 ------- Run | Yrd Mat Min Exi Min Mat Gar Traps Triggered 2 | . 2 . . . . . Indirectly . | . . . . . . . Trap Hack Attempts . | . . . . . . . Triggered . | . . . . . . . Disarmed . | . . . . . . . Reprogrammed . | . . . . . . . Reused . | . . . . . . . Traps Extracted . | . . . . . . . Installed . | . . . . . . . Triggered . | . . . . . . . Machines | -11 -10 -10 -10 -9 -8 -8 ---------- Run | Yrd Mat Min Exi Min Mat Gar Machines Disabled 5 | . 3 . . . 2 . Max in Single Turn 2 | . 2 . . . 1 . Machines Repaired . | . . . . . . . Machines Dismantled . | . . . . . . . Machines Sabotaged . | . . . . . . . Overloaded Fab Kills . | . . . . . . . Hacking | -11 -10 -10 -10 -9 -8 -8 --------- Run | Yrd Mat Min Exi Min Mat Gar Machines Accessed 27 | . 9 . 3 . 15 . Terminals 16 | . 7 . . . 9 . Fabricators . | . . . . . . . Repair Stations 1 | . . . . . 1 . Recycling Units 4 | . 2 . . . 2 . Scanalyzers 2 | . . . . . 2 . Garrison Access 1 | . . . . . 1 . Total Hacks 80 | . 34 . 3 . 43 . Successful 31 | . 10 . 3 . 18 . Failed 48 | . 24 . . . 24 . Catastrophic 6 | . 2 . . . 4 . Database Lockouts 1 | . . . . . 1 . Manual 45 | . 27 . 1 . 17 . Terminals 49 | . 25 . . . 24 . Fabricators . | . . . . . . . Repair Stations 2 | . . . . . 2 . Recycling Units 13 | . 9 . . . 4 . Scanalyzers 12 | . . . . . 12 . Garrison Access 1 | . . . . . 1 . Terminal Hacks 16 | . 7 . 3 . 6 . Record 2 | . . . 2 . . . Part Schematic 2 | . 2 . . . . . Robot Analysis 4 | . 3 . . . 1 . Prototype ID Bank 2 | . . . . . 2 . Terminal Index 2 | . 1 . . . 1 . Locate Traps 1 | . . . . . 1 . Hauler Manifests 2 | . 1 . . . 1 . Proto ID Catalog 1 | . . . 1 . . . Fabricator Hacks . | . . . . . . . Repair Station Hacks 2 | . . . . . 2 . Scan Component 1 | . . . . . 1 . Repair 1 | . . . . . 1 . Recycling Unit Hacks 2 | . 1 . . . 1 . Retrieve Components 2 | . 1 . . . 1 . Scanalyzer 6 | . . . . . 6 . Insert Component 1 | . . . . . 1 . Analyze 1 | . . . . . 1 . Retrieve Study 4 | . . . . . 4 . Garrison Access Hacks 1 | . . . . . 1 . Unlock Access 1 | . . . . . 1 . Unauthorized Hacks 4 | . 2 . . . 2 . Terminals 3 | . 1 . . . 2 . Assimilate 1 | . . . . . 1 . Botnet 1 | . 1 . . . . . Operators 1 | . . . . . 1 . Fabricators . | . . . . . . . Repair Stations . | . . . . . . . Recycling Units 1 | . 1 . . . . . Tunnel 1 | . 1 . . . . . Scanalyzers . | . . . . . . . Garrison Access . | . . . . . . . Data Cores Recovered 2 | . 1 . . . 1 . Used . | . . . . . . . Hacking Detections 22 | . 9 . . . 13 . Full Trace Events 4 | . 2 . . . 2 . Feedback Events . | . . . . . . . Feedback Blocked . | . . . . . . . Robot Schematics Acquired . | . . . . . . . Robots Built . | . . . . . . . Authchips . | . . . . . . . Time . | . . . . . . . Total Robot Build Rating . | . . . . . . . Part Schematics Acquired 2 | . 2 . . . . . Parts Built . | . . . . . . . Authchips . | . . . . . . . Time . | . . . . . . . Total Part Build Rating . | . . . . . . . Part Studies Acquired 3 | . . . . . 3 . Parts Repaired 1 | . . . . . 1 . Time 44 | . . . . . 44 . Parts Recycled . | . . . . . . . Recycled Matter . | . . . . . . . Retrieved Matter . | . . . . . . . Retrieved Components 13 | . 3 . . . 10 . Parts Scanalyzed 1 | . . . . . 1 . Part Schematics Acquired . | . . . . . . . Parts Damaged . | . . . . . . . Bothacking | -11 -10 -10 -10 -9 -8 -8 ------------ Run | Yrd Mat Min Exi Min Mat Gar Used RIF Installer . | . . . . . . . Robots Hacked . | . . . . . . . Non-combat . | . . . . . . . Combat . | . . . . . . . Robot Hacks Applied . | . . . . . . . Relay Couplers Released . | . . . . . . . Fabnet Peak Effective % . | . . . . . . . Robots Rewired 4 | . . . 4 . . . Allies Hacked . | . . . . . . . Hacks Repelled . | . . . . . . . Allies | -11 -10 -10 -10 -9 -8 -8 -------- Run | Yrd Mat Min Exi Min Mat Gar Total Allies 7 | . . 3 4 . . . Largest Group 7 | . . 3 7 7 . . Highest-Rated Group 72 | . . 40 72 72 . . Highest-Rated Ally 16 | . . 16 16 16 . . Total Orders . | . . . . . . . Ally Attacks 10 | . . . . 10 . . Total Damage 109 | . . . . 109 . . Kills . | . . . . . . . Allies Corrupted . | . . . . . . . Allies Melted . | . . . . . . . Intel | -11 -10 -10 -10 -9 -8 -8 ------- Run | Yrd Mat Min Exi Min Mat Gar Active Infowar (turns) 1295 | 23 87 . . . 1185 . Optics 1185 | . . . . . 1185 . Seismic 110 | 23 87 . . . . . Robot Analysis Total 4 | . 3 . . . 1 . Derelict Logs Recovered 1 | . . 1 . . . . Drone Launches . | . . . . . . . Drone Recoveries . | . . . . . . . Exploration | -11 -10 -10 -10 -9 -8 -8 ------------- Run | Yrd Mat Min Exi Min Mat Gar Turns Passed 6348 | 115 1448 1156 952 241 2330 106 Spaces Moved 3272 | 50 672 582 475 112 1324 57 Core 31 | 4 . . . . . 27 Treads 325 | 46 279 . . . . . Legs 2529 | . 393 582 475 112 967 . Wheels 387 | . . . . . 357 30 Hover . | . . . . . . . Flight . | . . . . . . . Fastest Speed 50 | 50 160 190 190 190 105 50 Average Speed 165 | 151 185 190 190 190 137 100 Slowest Speed 385 | 160 240 190 190 190 385 145 Overloaded Moves . | . . . . . . . Propulsion Burnouts . | . . . . . . . Robots Hopped . | . . . . . . . Potential Cave-ins . | . . . . . . . Cave-ins Triggered . | . . . . . . . Exploration Rate (%) 61 | 4 96 99 92 24 93 20 Regions Visited 6 Branch Regions 3 Pre-discovered Areas 2 | . 1 . 1 . . . Known Exits Taken 2 | . . . 1 . 1 . Unknown Exits Taken 4 | 1 1 1 . 1 . . Scrap Searched 1 | . . 1 . . . . Spaces Dug . | . . . . . . . Terrain Destroyed 194 | 5 69 32 . . 77 11 Melee . | . . . . . . . Projectile . | . . . . . . . AOE 194 | 5 69 32 . . 77 11 Terrain Rammed . | . . . . . . . Walls Destroyed . | . . . . . . . Machines Disabled . | . . . . . . . Actions | -11 -10 -10 -10 -9 -8 -8 --------- Run | Yrd Mat Min Exi Min Mat Gar Total 3868 | 70 788 609 525 125 1670 81 Wait 169 | 3 17 7 11 . 128 3 Move 3267 | 49 671 581 474 111 1324 57 Hop . | . . . . . . . Pick Up 57 | 1 21 . 1 3 31 . Fast Attach 23 | 8 6 . . . 9 . Attach 17 | . 1 . . 3 9 4 Detach 9 | 1 2 . . . 6 . Swap 46 | . 9 6 . . 31 . Drop 50 | . 13 . 1 . 36 . Fire 166 | 8 46 10 . 8 78 16 Melee . | . . . . . . . Ram 1 | . . . . . . 1 Kick 24 | . 1 5 . . 18 . Crush 1 | . 1 . . . . . Escape Stasis . | . . . . . . . Rewire 38 | . . . 38 . . . Trap . | . . . . . . . Miscellaneous . | . . . . . . . Route ------- -11/Scrapyard -10/Materials (discovered 4 exits: [*Mat x3] / [*Min]) -10/Mines (discovered 4 exits: [*Mat x2] / *Exi / [*Sub]) -10/Exiles (discovered 2 exits: *Min x2) -9/Mines -8/Materials (discovered 5 exits: [*Fac x2] / [*Sto x2] / Gar) -8/Garrison History --------- Turn | Location | Event 36 | -11/Scrapyard | Discovered new exit (range 14) 116 | -11/Scrapyard | Entered Materials 232 | -10/Materials | Lost 3 parts (1n1u1w) 302 | -10/Materials | Build established: Mutant 721 | -10/Materials | Discovered new exit (range 8) 820 | -10/Materials | Discovered new exit (range 16) 1032 | -10/Materials | Discovered new exit (range 8) 1198 | -10/Materials | Discovered new exit (range 10) 1564 | -10/Materials | Entered Mines 1620 | -10/Mines | Discovered new exit (range 10) 1784 | -10/Mines | Discovered new exit (range 4) 2407 | -10/Mines | Deemed a non-threat by the Exiles lab entrance 2454 | -10/Mines | Discovered new exit (range 7) 2529 | -10/Mines | Received a Rocket Launcher from a helpful Derelict 2630 | -10/Mines | Assisted by bots powering up and referring to "LRC-V3" 2711 | -10/Mines | Discovered new exit (range 5) 2720 | -10/Mines | Entered Exiles 2720 | -10/Exiles | Found Exiles lab destroyed 2720 | -10/Exiles | Accompanied by 3 allies 2721 | -10/Exiles | Identified exit to Mines 3130 | -10/Exiles | Build established: Commander-Mutant 3303 | -10/Exiles | Learned location of Zion (-6) 3454 | -10/Exiles | Opened EX-Vault 3462 | -10/Exiles | Found Modified TNC 3672 | -10/Exiles | Entered Mines 3672 | -9/Mines | Accompanied by 7 allies 3743 | -9/Mines | Discovered new exit (range 12) 3822 | -9/Mines | Assembled infested the area 3834 | -9/Mines | Core integrity fell below 50% 3840 | -9/Mines | Core integrity fell below 20% 3861 | -9/Mines | Lost 7 allies 3871 | -9/Mines | Lost 3 parts (1p1n1u) 3913 | -9/Mines | Entered Materials 3913 | -8/Materials | Evolved 4 slots: Propulsion x1, Utility x1, Weapon x2 4253 | -8/Materials | Build established: Tank 4397 | -8/Materials | Discovered new exit (range 10) 4747 | -8/Materials | Build established: Skirmisher 4952 | -8/Materials | Central database locked down 4985 | -8/Materials | Discovered new exit (range 11) 5266 | -8/Materials | Repaired Flak Gun? 5439 | -8/Materials | Discovered new exit (range 13) 5777 | -8/Materials | Build established: Tank 5931 | -8/Materials | Discovered new exit (range 5) 5963 | -8/Materials | Garrison activated, responded to threat 6243 | -8/Materials | Identified exit to Garrison 6243 | -8/Materials | Entered Garrison 6273 | -8/Garrison | Triggered checkpoint 6289 | -8/Garrison | System corruption reached 10% 6325 | -8/Garrison | Core integrity fell below 50% 6335 | -8/Garrison | Core integrity fell below 20% 6336 | -8/Garrison | Released all parts (2) 6345 | -8/Garrison | Triggered checkpoint 6349 | -8/Garrison | Triggered checkpoint 6349 | -8/Garrison | Destroyed by G-47 Trooper with Particle Gun Last Messages --------------- 06313_ Critical hit (Burn: +37). 06314_ P-60 Hacker destroyed. 06314_ Switching to secondary target: Y-45 Defender. 06315_ Arm. Huge Wheel destroyed. 06316_ Autogun destroyed. 06317_ G-47 Trooper destroyed. 06318_ Flak Gun destroyed. 06323_ Destroyed Shock Rifle. 06325_ G-47 Trooper destroyed. 06326_ Autogun destroyed. 06327_ System corrupted: Heat flow error (+218). 06330_ System corrupted: Mni. Grenade Launcher+ failed to launch. 06334_ Destroyed Shock Rifle. 06336_ Released Huge Storage Unit. 06336_ Released Mni. Grenade Launcher+. 06336_ Acquired 8 matter. 06345_ Beams of light sweep through the air. An alarm sounds. Map ----- +----------------------------------------------------+ | ?????????????????????????????????### #??????????? | | ?????????????????????????????????# ####???????? | | ?????????????????????????????????# # #???????? | | ?????????????????????????????????? = #???????? | | ??????????????????????????????????## ! #???????? | | ?????????????????????????########## =!!!########## | | ?????????????????????????# =!!|! | | ?????????????????????????# =[*=!== | | ?????????????????????????# !! !!] | | ?????????????????????????# ########!############ | | ?????????????????????????# #?????# #??????????? | | ?????????????????????????# #?????# #??????????? | | ?????????????????????????# #?????# #??????????? | | ??????????????# ?????????# #????? #??????????? | | ??????????????# ??####??# #????## #??????????? | | ??????????????# ?# ?# #?????# #??????????? | | ??????????????# ## ## #?????# #??????????? | | ??????????????# g #?????# #??????????? | | ??????????????# gg #????? ???????????? | | ??????????????# #????? ???????????? | | ??????????????# ## ## #?????###???????????? | | ??????????????# ## ## #???????????????????? | | ??????????????" "???????????????????? | | ??????????????" "???????????????????? | | ??????????????" "???????????????????? | | ??????????????" @ "???????????????????? | | ??????????????# ## ## #???????????????????? | | ??????????????# ???# ?# #???????????????????? | | ????????????????? ? ??????????????????? | | ??????????????? ?? ????????????????? | | ??????????????# ?? #####???????????????? | | ??????????????######""???# ##???????????????????? | | ?????????????????????????# #????????????????????? | | ?????????????????????????? #????????????????????? | | ?????????????????????????? #????????????????????? | | ?????????????????????????? #????????????????????? | | ?????????????????????????? ?????????????????????? | | ?????????????????????????? ?????????????????????? | | ?????????????????????????? ?????????????????????? | | ?????????????????????????????????????????????????? | | ?????????????????????????????????????????????????? | | ?????????????????????????????????????????????????? | | ?????????????????????????????????????????????????? | | ?????????????????????????????????????????????????? | | ?????????????????????????????????????????????????? | | ?????????????????????????????????????????????????? | | ?????????????????????????????????????????????????? | | ?????????????????????????????????????????????????? | | ?????????????????????????????????????????????????? | | ?????????????????????????????????????????????????? | +----------------------------------------------------+ Best States ------------- Heat Dissipation 53 Energy Generation 14 Energy Capacity 265 Matter Stores 300 Matter Capacity 300 Sight Range 20 Terrain Scan Density 10 Armor Coverage 150 Weapon Shielding 33 Evasion (%) 55 Recoil Reduction 2 Item Schematics ----------------- Hcp. Storage Unit | -10/Materials | Hacked Lrg. Storage Unit | -10/Materials | Hacked Robot Schematics ------------------ None Fabricated ------------ Nothing Repaired ---------- Flak Gun | 72% | -8/Materials Studied --------- Imp. Aluminum Leg | -8/Materials | Hacked Mni. Grenade Launcher | -8/Materials | Hacked Carbon-fiber Leg | -8/Materials | Hacked Alien Tech Used ----------------- None Achievements -------------- None Challenges ------------ None Game ------ Seed StasisFocalGriptreads Manual? 0 Play Time 00:40:24 Cumulative 427.8 hours Start 2025.10.23 @ 04:00:00 End 2025.10.23 @ 06:36:47 Sessions 2 Manual Loads 0 Difficulty Rogue Special Mode None Game No. 227 Rogue 227 Adventurer 0 Explorer 0 Win Type - Total 19 Types 11/1/5/1/0/0/0/1/0/0 Lore% 91 Gallery% 84 Achievement% 76 Wizard Run 0 Options --------- Layout 2 ASCII 1 Keyboard 1 Movement Vi Keybinds 0 Fullscreen 1 Font 28/Terminus Map View 50x52 Zoom Use 0% Tactical HUD 1 Map Filters NONE Filters NONE Steam 1 RUN: d0022173-fdae-4007-9ca7-d97e59e6befc